bitfinex-derivatives/quotes_SOLF0:USTF0_20250516
["timestamp","ask_amount","ask_price","bid_price","bid_amount"]
[1747413482281,66.4273,170.37,170.3,60.56]
[1747413482884,60.56,170.37,170.3,60.56]
[1747413483482,60.56,170.37,170.32,8.64603758]
[1747413483873,5.8666,170.39,170.32,8.64603758]
[1747413484184,60.56,170.42,170.32,8.64603758]
[1747413484384,60.56,170.42,170.33,2.0007]
[1747413484588,60.56,170.42,170.34,60.56]
[1747413485582,60.56,170.42,170.35,5.8676]
[1747413485784,60.56,170.42,170.34,60.56]
[1747413486886,60.56,170.42,170.36,5.8673]
[1747413487089,60.56,170.42,170.34,60.56]
[1747413487387,5.8663,170.4,170.37,5.8669]
[1747413487884,60.56,170.42,170.34,60.56]
[1747413488088,60.56,170.42,170.32,60.56]
[1747413488387,60.56,170.41,170.32,60.56]
[1747413488591,5.867,170.38,170.35,5.8676]
[1747413488789,66.427,170.38,170.35,5.8676]
[1747413488986,66.427,170.38,170.36,5.8674]
[1747413489188,60.56,170.38,170.36,5.8674]
[1747413489496,60.56,170.38,170.32,60.56]
[1747413489688,5.8671,170.37,170.32,60.56]
[1747413489879,60.56,170.36,170.19,17.6193]
[1747413490080,69.20603758,170.36,170.26,5.8707]
[1747413490285,8.64603758,170.33,170.21,73.46405483]
[1747413490490,125.0217,170.32,170.21,73.46405483]
[1747413490690,5.8703,170.28,170.24,5.8715]
[1747413490892,60.56,170.27,170.21,73.46405483]
[1747413491282,5.8719,170.24,170.21,12.90405483]
[1747413491490,60.92,170.23,170.21,12.90405483]
[1747413491692,60.92,170.22,170.21,12.90405483]
[1747413494692,66.7923,170.22,170.21,12.90405483]
[1747413495190,60.92,170.22,170.21,12.90405483]
[1747413496497,66.7923,170.22,170.21,12.90405483]
[1747413498297,5.8744,170.17,170.07,60.6]
[1747413498491,62.38,170.16,170.07,60.6]
[1747413499098,68.2544,170.16,170.13,5.8752]
[1747413499293,62.38,170.16,170.07,60.6]
[1747413499599,5.8763,170.11,170.0,60.6]
[1747413499797,13.86751477,170.19,170.0,60.6]
[1747413499798,62.66,170.1,170.01,1.9595]
[1747413500191,68.5365,170.1,170.01,1.9595]
[1747413500396,62.66,170.1,170.01,1.9595]
[1747413501399,60.6,170.16,170.03,60.6]
[1747413502688,60.6,170.16,170.06,5.8776]
[1747413502689,5.8764,170.11,170.06,5.8776]
[1747413502892,63.28,170.1,170.01,65.2195]
[1747413503297,507.54,170.18,170.03,13.86751477]
[1747413503494,63.26,170.14,170.03,13.86751477]
[1747413503795,63.26,170.13,170.11,5.8758]
[1747413504003,63.26,170.13,170.07,63.26]
[1747413504297,199.88099164,170.2,170.07,63.26]
[1747413504298,199.88099164,170.2,170.08,3.8405]
[1747413504497,63.28,170.19,170.08,5.7896]
[1747413505098,63.28,170.19,170.1,5.8764]
[1747413505489,5.875,170.15,170.11,5.8761]
[1747413505695,63.3,170.14,170.08,5.7896]
[1747413505994,5.8755,170.13,170.09,5.8766]
[1747413506395,126.58,170.14,170.08,3.8405]
[1747413506600,0.8534,170.2,170.08,3.8405]
[1747413506791,63.28,170.16,170.08,3.8405]
[1747413507199,69.1546,170.16,170.08,3.8405]
[1747413507401,63.28,170.16,170.08,3.8405]
[1747413507598,63.64,170.15,170.08,3.8405]
[1747413508105,69.5148,170.15,170.1,5.8761]
[1747413508402,69.5148,170.15,170.08,3.8405]
[1747413508606,63.64,170.15,170.03,1.9491]
[1747413508800,63.64,170.15,170.03,5.7888]
[1747413509200,1.9325,170.14,170.03,5.7888]
[1747413509403,1.9325,170.14,170.06,5.8778]
[1747413510204,5.8765,170.1,170.06,5.8778]
[1747413510503,63.64,170.09,170.06,5.8778]
[1747413510700,63.64,170.09,170.07,5.8774]
[1747413511106,63.64,170.09,170.03,5.7888]
[1747413511298,63.64,170.09,170.04,63.3]
[1747413511900,63.3,170.16,170.04,63.3]
[1747413512101,5.8757,170.13,170.04,63.3]
[1747413512402,63.7,170.12,170.1,5.8763]
[1747413512803,63.7,170.12,170.04,63.3]
[1747413513704,69.5758,170.12,170.08,5.8769]
[1747413513900,63.7,170.12,170.04,63.3]
[1747413514295,63.7,170.12,170.11,5.8761]
[1747413514499,263.65814654,170.2,170.08,63.3]
[1747413514894,263.65814654,170.2,170.11,5.8759]
[1747413515293,263.65814654,170.2,170.08,63.3]
[1747413516105,5.8739,170.18,170.08,63.3]
[1747413516308,69.1739,170.18,170.08,63.3]
[1747413516601,5.8741,170.17,170.13,5.8752]
[1747413516806,63.76,170.16,170.08,63.3]
[1747413517708,63.76,170.16,170.14,5.875]
[1747413517907,63.76,170.16,170.08,63.3]
[1747413518107,63.7,170.17,170.08,63.3]
[1747413518507,63.7,170.17,170.16,5.8744]
[1747413518807,63.3,170.18,170.16,5.8744]
[1747413519007,127.02,170.18,170.16,5.8744]
[1747413519308,126.98,170.18,170.17,5.874]
[1747413519500,63.68,170.18,170.17,5.874]
[1747413520408,63.68,170.18,170.16,5.8742]
[1747413520604,63.68,170.18,170.13,2.006]
[1747413521008,63.68,170.18,170.15,5.8745]
[1747413521305,63.68,170.18,170.13,2.006]
[1747413521909,5.8742,170.17,170.13,2.006]
[1747413522207,63.68,170.18,170.13,2.006]
[1747413522404,69.5539,170.18,170.13,2.006]
[1747413523000,69.5539,170.18,170.14,5.8749]
[1747413524409,5.8741,170.17,170.13,7.8813]
[1747413524910,5.8741,170.17,170.13,2.006]
[1747413525206,63.68,170.18,170.13,2.006]
[1747413525605,69.5539,170.18,170.14,5.8749]
[1747413526208,5.874,170.17,170.14,5.8749]
[1747413526410,63.68,170.18,170.13,2.006]
[1747413528410,63.68,170.18,170.14,5.875]
[1747413528411,69.5538,170.18,170.14,5.875]
[1747413528707,63.68,170.18,170.07,63.3]
[1747413528906,5.8759,170.12,170.02,77.68075446]
[1747413529106,63.76,170.12,170.03,63.3]
[1747413529511,5.8765,170.1,170.03,63.3]
[1747413529707,63.76,170.12,170.03,63.3]
[1747413530107,5.8766,170.1,170.06,5.8776]
[1747413530511,5.8762,170.11,170.07,5.8774]
[1747413531511,5.8765,170.1,170.07,5.8774]
[1747413531709,5.8765,170.1,170.06,5.8777]
[1747413531911,63.76,170.12,170.06,5.8777]
[1747413532212,5.8765,170.1,170.07,5.8774]
[1747413532402,63.76,170.12,170.07,5.8774]
[1747413532717,5.8763,170.11,170.07,5.8774]
[1747413533012,63.76,170.12,170.03,63.3]
[1747413533415,69.6359,170.12,170.08,5.8771]
[1747413533613,63.76,170.12,170.08,5.8771]
[1747413534613,5.8761,170.11,170.08,5.8771]
[1747413535215,69.6359,170.12,170.08,5.8771]
[1747413535513,69.6359,170.12,170.09,5.8768]
[1747413536113,63.76,170.12,170.03,63.3]
[1747413536313,63.76,170.12,170.03,77.18591618]
[1747413536710,63.5,170.15,170.03,77.18591618]
[1747413537013,63.52,170.19,170.07,13.88591618]
[1747413537217,63.52,170.19,170.16,5.8741]
[1747413537613,63.48,170.19,170.13,1.9694]
[1747413537815,5.8738,170.18,170.14,5.8749]
[1747413538011,63.48,170.19,170.13,1.9694]
[1747413538408,5.8739,170.18,170.14,5.8749]
[1747413538609,63.48,170.19,170.14,5.8749]
[1747413538914,5.8738,170.18,170.14,5.8749]
[1747413539912,63.48,170.19,170.14,5.8749]
[1747413540317,63.48,170.19,170.15,5.8747]
[1747413540512,63.48,170.19,170.13,1.9694]
[1747413540713,263.19814654,170.2,170.13,1.9694]
[1747413540919,263.19814654,170.2,170.18,5.8736]
[1747413541216,263.19814654,170.2,170.13,1.9694]
[1747413542016,199.87814654,170.2,170.13,1.9694]
[1747413542316,63.34,170.19,170.13,1.9694]
[1747413542512,63.34,170.19,170.17,5.8737]
[1747413543315,63.34,170.19,170.13,1.9694]
[1747413543617,63.34,170.19,170.09,3.7908]
[1747413544423,5.8746,170.16,170.09,3.7908]
[1747413544619,63.34,170.19,170.09,3.7908]
[1747413544818,63.34,170.19,170.1,63.64]
[1747413545115,69.2134,170.19,170.15,5.8744]
[1747413545317,69.2134,170.19,170.1,63.64]
[1747413545512,69.2134,170.19,170.15,5.8745]
[1747413545818,63.34,170.19,170.1,63.64]
[1747413546621,5.875,170.15,170.11,5.876]
[1747413546820,63.34,170.19,170.11,5.876]
[1747413547019,63.64,170.18,170.1,63.64]
[1747413547323,5.8752,170.14,170.1,63.64]
[1747413547617,63.42,170.15,170.1,63.64]
[1747413548716,69.2949,170.15,170.1,63.64]
[1747413549120,69.2949,170.15,170.11,5.8759]
[1747413549315,69.2949,170.15,170.1,63.64]
[1747413549516,63.42,170.15,170.1,63.64]
[1747413550219,69.2145,170.16,170.1,63.64]
[1747413550420,69.2145,170.16,170.12,5.8755]
[1747413550616,5.8748,170.15,170.1,63.64]
[1747413550821,63.34,170.16,170.1,63.64]
[1747413551017,63.34,170.16,170.12,5.8757]
[1747413551217,63.34,170.16,170.1,63.64]
[1747413551616,63.34,170.16,170.13,5.8752]
[1747413551817,69.2144,170.16,170.13,5.8752]
[1747413555124,63.34,170.16,170.14,5.875]
[1747413555828,63.64,170.18,170.1,63.64]
[1747413556028,63.12,170.17,170.1,72.31255623]
[1747413556230,199.87814654,170.2,170.1,135.43255623]
[1747413556430,268.87124654,170.2,170.1,135.43255623]
[1747413556627,262.99814654,170.2,170.1,135.43255623]
[1747413556930,5.8733,170.19,170.16,5.8743]
[1747413557329,262.99814654,170.2,170.1,135.43255623]
[1747413557535,262.99814654,170.2,170.13,8.67255623]
[1747413557831,63.64,170.22,170.14,63.64]
[1747413558033,126.84,170.22,170.19,5.8731]
[1747413559537,126.84,170.22,170.18,5.8736]
[1747413559735,126.84,170.22,170.1,8.67255623]
[1747413560035,5.8739,170.18,170.11,63.64]
[1747413560225,68.9539,170.18,170.11,63.64]
[1747413560537,68.9539,170.18,170.14,5.8748]
[1747413560738,68.9539,170.18,170.11,63.64]
[1747413561031,68.9539,170.18,170.14,5.8748]
[1747413561237,68.9539,170.18,170.11,63.64]
[1747413561435,5.874,170.17,170.11,63.64]
[1747413561738,63.08,170.18,170.11,63.64]
[1747413561936,62.98,170.21,170.11,63.64]
[1747413562337,62.98,170.21,170.12,62.96]
[1747413562740,62.98,170.21,170.18,5.8733]
[1747413563529,62.98,170.21,170.19,5.8733]
[1747413563737,62.98,170.21,170.15,62.92]
[1747413564137,62.98,170.21,170.18,5.8733]
[1747413564341,62.98,170.21,170.15,62.92]
[1747413564742,62.98,170.21,170.18,5.8736]
[1747413565042,68.8528,170.21,170.15,62.92]
[1747413565247,68.8528,170.21,170.17,5.8737]
[1747413565443,68.8528,170.21,170.15,62.92]
[1747413565637,62.98,170.21,170.15,62.92]
[1747413565942,69.5124,170.22,170.15,62.92]
[1747413565943,62.84,170.22,170.15,62.92]
[1747413566144,68.6921,170.23,170.16,1.8695]
[1747413566450,62.82,170.23,170.19,5.8731]
[1747413566746,62.82,170.23,170.16,1.8695]
[1747413566941,62.82,170.23,170.17,5.8738]
[1747413567132,62.82,170.23,170.13,1.8648]
[1747413567332,62.82,170.23,170.12,62.92]
[1747413567538,62.82,170.23,170.14,5.875]
[1747413567838,8.67255623,170.22,170.14,5.875]
[1747413568040,62.92,170.21,170.14,5.875]
[1747413568242,62.92,170.21,170.13,5.8752]
[1747413568546,5.8742,170.17,170.11,1.8471]
[1747413568739,62.78,170.17,170.11,1.8471]
[1747413568942,68.6541,170.17,170.1,1.9473]
[1747413569343,62.78,170.17,170.14,5.8748]
[1747413570244,68.6541,170.17,170.14,5.8748]
[1747413570445,68.6541,170.17,170.13,5.8753]
[1747413570644,131.5741,170.17,170.13,5.8753]
[1747413570845,131.5741,170.17,170.1,1.9473]
[1747413570846,5.8745,170.16,170.12,5.8756]
[1747413571143,5.8745,170.16,170.1,1.9473]
[1747413571344,5.8745,170.16,170.13,5.8752]
[1747413572445,8.67255623,170.16,169.99,62.92]
[1747413572635,10.66785623,170.16,170.0,8.67255623]
[1747413572840,11.52195623,170.16,170.0,8.67255623]
[1747413573042,8.67255623,170.13,170.06,5.8778]
[1747413573236,62.72,170.12,170.06,5.8778]
[1747413573943,5.877,170.09,170.06,5.8778]
[1747413574250,5.877,170.09,170.05,5.8779]
[1747413574852,5.8771,170.08,170.05,5.8779]
[1747413575146,62.72,170.12,170.05,5.8779]
[1747413575447,5.8765,170.1,170.05,5.8779]
[1747413575650,62.72,170.12,170.05,5.8779]
[1747413575946,62.72,170.12,170.03,62.92]
[1747413576449,62.72,170.12,170.03,71.59255623]
[1747413576639,68.4959,170.12,170.08,5.8771]
[1747413577245,62.62,170.12,170.09,5.8768]
[1747413577448,62.62,170.12,170.07,62.92]
[1747413577646,62.62,170.12,170.08,64.823]
[1747413577852,0.8533,170.22,170.08,64.823]
[1747413577853,62.62,170.15,170.08,64.823]
[1747413578350,5.8754,170.13,170.08,70.7]
[1747413578747,5.8754,170.13,170.08,64.823]
[1747413579553,5.8754,170.13,170.09,5.8767]
[1747413579854,5.8758,170.12,170.08,64.823]
[1747413580153,62.62,170.15,170.08,64.823]
[1747413580653,5.8763,170.11,170.08,64.823]
[1747413581155,5.8761,170.12,170.08,70.7]
[1747413581452,62.62,170.15,170.08,70.7]
[1747413581657,5.876,170.12,170.08,70.7]
[1747413582148,62.6,170.11,170.09,5.8767]
[1747413582352,62.6,170.11,170.08,64.823]
[1747413582557,62.6,170.11,170.08,70.6999]
[1747413583255,62.6,170.11,170.09,5.8768]
[1747413583650,62.6,170.11,170.08,64.823]
[1747413583846,62.6,170.11,170.1,5.8764]
[1747413584051,62.56,170.13,170.08,64.823]
[1747413584251,62.56,170.15,170.08,64.823]
[1747413584454,62.94,170.2,170.14,5.875]
[1747413584655,5.8738,170.18,170.14,5.875]
[1747413585249,68.4334,170.19,170.15,5.8747]
[1747413586249,62.56,170.19,170.16,5.8743]
[1747413586453,5.8732,170.2,170.16,5.8743]
[1747413586753,62.5,170.19,170.16,5.8743]
[1747413587948,68.3733,170.19,170.16,5.8743]
[1747413588149,68.5133,170.19,170.15,5.8746]
[1747413588556,62.64,170.19,170.12,71.61255623]
[1747413588754,62.64,170.19,170.16,5.8742]
[1747413589152,68.5134,170.19,170.15,5.8746]
[1747413589759,62.6,170.18,170.12,71.61255623]
[1747413590258,68.4737,170.18,170.12,71.61255623]
[1747413590860,68.4737,170.18,170.14,5.8747]
[1747413591358,68.4737,170.18,170.15,5.8747]
[1747413592054,68.4737,170.18,170.14,5.8749]
[1747413592656,68.4737,170.18,170.12,62.94]
[1747413593158,62.6,170.18,170.12,62.94]
[1747413593657,62.6,170.18,170.15,5.8745]
[1747413594159,62.6,170.18,170.16,5.8743]
[1747413594361,62.6,170.18,170.12,62.94]
[1747413594860,62.6,170.18,170.15,5.8745]
[1747413595056,62.6,170.18,170.12,62.94]
[1747413595561,62.6,170.18,170.16,5.8741]
[1747413596962,62.6,170.18,170.17,5.874]
[1747413597260,62.32,170.19,170.12,71.61255623]
[1747413597656,62.32,170.19,170.18,5.8737]
[1747413598959,62.28,170.2,170.12,71.61255623]
[1747413599154,62.28,170.21,170.13,62.42]
[1747413599354,62.28,170.21,170.2,5.873]
[1747413599862,62.28,170.22,170.17,62.42]
[1747413600359,62.3,170.24,170.17,62.42]
[1747413600556,62.3,170.24,170.18,8.67255623]
[1747413600756,62.28,170.26,170.18,8.67255623]
[1747413600960,199.78815717,170.27,170.18,8.67255623]
[1747413601161,62.28,170.26,170.18,8.67255623]
[1747413601361,2.0008,170.31,170.18,8.67255623]
[1747413601557,62.26,170.3,170.18,70.91255623]
[1747413601953,68.1296,170.3,170.18,70.91255623]
[1747413602665,62.26,170.3,170.18,70.91255623]
[1747413603164,68.1298,170.3,170.26,5.8708]
[1747413603564,62.26,170.3,170.24,62.42]
[1747413603864,5.87,170.29,170.24,62.42]
[1747413604062,62.26,170.3,170.24,62.42]
[1747413604365,68.1296,170.3,170.26,5.8707]
[1747413605160,5.8689,170.32,170.28,5.87]
[1747413605367,62.14,170.31,170.28,5.87]
[1747413605659,62.12,170.3,170.27,5.8705]
[1747413605867,62.12,170.3,170.24,62.42]
[1747413606168,67.9896,170.3,170.26,5.8709]
[1747413606461,62.4,170.34,170.24,62.42]
[1747413606666,62.12,170.33,170.24,62.42]
[1747413606866,5.8692,170.31,170.24,62.42]
[1747413607059,62.16,170.3,170.24,62.42]
[1747413607455,62.16,170.3,170.29,5.8699]
[1747413607864,62.16,170.3,170.24,62.42]
[1747413607865,62.16,170.3,170.26,5.8706]
[1747413608065,62.16,170.3,170.24,62.42]
[1747413608066,62.1,170.3,170.24,62.42]
[1747413608362,1.8672,170.36,170.24,71.09255623]
[1747413608561,67.9679,170.35,170.31,5.8689]
[1747413608767,1.8672,170.36,170.28,62.4]
[1747413608965,5.8682,170.34,170.3,5.8693]
[1747413609668,67.9679,170.35,170.28,62.4]
[1747413609857,8.67255623,170.4,170.28,62.4]
[1747413610061,8.67255623,170.47,170.33,8.67255623]
[1747413610363,312.16899557,170.48,170.34,64.2953]
[1747413610563,62.2,170.47,170.36,8.67255623]
[1747413610755,62.2,170.47,170.37,1.9633]
[1747413610960,62.2,170.47,170.38,62.38]
[1747413611157,312.16899557,170.48,170.39,8.67255623]
[1747413611360,374.34899557,170.48,170.38,62.38]
[1747413611562,5.8643,170.46,170.41,5.8657]
[1747413611766,436.72899557,170.48,170.37,1.9633]
[1747413611969,5.8646,170.45,170.41,5.8656]
[1747413612166,62.2,170.44,170.41,5.8656]
[1747413612370,62.2,170.44,170.38,62.38]
[1747413612674,374.54899557,170.48,170.38,62.38]
[1747413612866,62.42,170.47,170.38,62.38]
[1747413614574,5.8647,170.45,170.4,5.866]
[1747413614972,5.8647,170.45,170.38,62.38]
[1747413615368,5.8641,170.46,170.38,62.38]
[1747413615567,62.42,170.47,170.38,62.38]
[1747413616974,5.8651,170.43,170.39,5.8662]
[1747413617173,62.36,170.42,170.38,62.38]
[1747413617675,62.28,170.44,170.38,62.38]
[1747413618067,62.28,170.44,170.43,5.8651]
[1747413618267,62.34,170.46,170.39,8.67255623]
[1747413618466,62.34,170.47,170.39,8.67255623]
[1747413618671,318.03229557,170.48,170.43,5.8648]
[1747413619166,62.34,170.47,170.42,62.34]
[1747413619368,68.2039,170.47,170.42,62.34]
[1747413619774,68.2039,170.47,170.42,68.2052]
[1747413620273,5.864,170.46,170.42,68.2052]
[1747413620573,62.34,170.47,170.43,5.865]
[1747413620873,68.2039,170.47,170.43,5.865]
[1747413621075,62.34,170.47,170.42,68.2053]
[1747413621274,62.34,170.47,170.42,62.34]
[1747413621674,5.8643,170.46,170.43,5.865]
[1747413622075,124.68,170.47,170.39,62.34]
[1747413622268,8.67255623,170.45,170.31,527.83095623]
[1747413622468,8.67255623,170.45,170.33,62.34]
[1747413622668,8.67255623,170.42,170.33,62.34]
[1747413622868,5.8669,170.38,170.35,5.8675]
[1747413623163,62.24,170.37,170.33,62.34]
[1747413623779,62.24,170.37,170.36,5.8675]
[1747413624678,62.24,170.37,170.35,5.8677]
[1747413624978,62.24,170.37,170.33,62.34]
[1747413625177,62.24,170.37,170.36,5.8675]
[1747413626380,11.47395623,170.46,170.37,5.867]
[1747413626573,124.46,170.45,170.37,5.867]
[1747413627377,62.22,170.44,170.34,8.67255623]
[1747413627579,62.22,170.43,170.34,8.67255623]
[1747413627876,62.22,170.43,170.33,71.01255623]
[1747413628073,62.2,170.42,170.33,71.01255623]
[1747413628275,1.9522,170.46,170.33,71.01255623]
[1747413628480,68.0846,170.45,170.4,5.8658]
[1747413628875,62.2,170.44,170.37,62.22]
[1747413629078,5.8646,170.45,170.37,62.22]
[1747413629384,62.18,170.44,170.37,62.22]
[1747413630081,68.0447,170.44,170.37,62.22]
[1747413630284,68.0447,170.44,170.4,5.8659]
[1747413630481,62.18,170.44,170.37,62.22]
[1747413630878,62.18,170.44,170.4,5.8658]
[1747413631185,68.0449,170.44,170.4,5.8658]
[1747413632685,62.18,170.44,170.41,5.8657]
[1747413633689,62.18,170.44,170.37,62.22]
[1747413633979,61.98,170.44,170.37,62.22]
[1747413634180,61.98,170.45,170.39,8.67255623]
[1747413634385,312.16899557,170.48,170.4,1.854]
[1747413634583,61.96,170.47,170.41,62.22]
[1747413634778,61.96,170.47,170.45,5.8641]
[1747413634977,61.96,170.47,170.41,62.22]
[1747413635279,61.96,170.47,170.46,5.864]
[1747413635687,312.16899557,170.48,170.41,62.22]
[1747413635887,374.10899557,170.48,170.41,62.22]
[1747413636081,374.10899557,170.48,170.4,1.854]
[1747413636282,5.8646,170.45,170.4,64.074]
[1747413636481,61.96,170.44,170.4,64.074]
[1747413636683,61.96,170.44,170.4,62.22]
[1747413636879,61.96,170.44,170.38,1.8386]
[1747413637075,67.8249,170.44,170.4,5.8659]
[1747413637284,61.96,170.44,170.38,1.8386]
[1747413637586,61.96,170.44,170.4,5.8661]
[1747413638088,67.8249,170.44,170.4,5.8661]
[1747413638384,67.8249,170.44,170.38,1.8386]
[1747413638588,62.02,170.44,170.38,1.8386]
[1747413638781,312.16899557,170.48,170.38,10.51115623]
[1747413638986,62.06,170.47,170.38,10.51115623]
[1747413639187,62.06,170.47,170.46,5.864]
[1747413639382,62.06,170.47,170.43,62.22]
[1747413640389,62.06,170.47,170.45,5.8641]
[1747413640585,62.06,170.47,170.43,62.22]
[1747413640983,62.06,170.47,170.39,62.22]
[1747413641184,62.06,170.47,170.39,64.1755]
[1747413642391,62.06,170.47,170.45,5.8641]
[1747413642590,62.06,170.47,170.39,64.1755]
[1747413643389,62.06,170.47,170.44,5.8644]
[1747413643586,62.06,170.47,170.39,64.1755]
[1747413643895,62.06,170.47,170.41,5.8656]
[1747413644090,62.06,170.47,170.39,64.1755]
[1747413644296,124.26,170.47,170.39,62.22]
[1747413644497,124.26,170.47,170.4,5.866]
[1747413644793,124.26,170.47,170.39,62.22]
[1747413644998,5.8655,170.42,170.38,5.8666]
[1747413645190,61.86,170.41,170.38,5.8666]
[1747413645799,67.7258,170.41,170.36,62.2]
[1747413646298,61.86,170.41,170.38,5.8667]
[1747413646997,67.7258,170.41,170.38,5.8667]
[1747413647198,61.86,170.41,170.36,62.2]
[1747413648298,67.7259,170.41,170.37,5.8669]
[1747413648486,61.86,170.41,170.36,62.2]
[1747413650493,67.7259,170.41,170.37,5.867]
[1747413650799,67.7259,170.41,170.36,62.2]
[1747413651603,67.7259,170.41,170.38,5.8667]
[1747413651802,61.86,170.41,170.38,5.8667]
[1747413652705,67.7258,170.41,170.38,5.8667]
[1747413653003,61.56,170.41,170.36,62.2]
[1747413653299,61.56,170.42,170.36,62.2]
[1747413653503,61.58,170.43,170.41,5.8655]
[1747413653701,61.58,170.43,170.36,62.2]
[1747413653898,61.58,170.43,170.38,5.8664]
[1747413654097,61.58,170.43,170.36,62.2]
[1747413654295,5.8655,170.42,170.36,62.2]
[1747413654500,61.58,170.43,170.38,5.8667]
[1747413654891,61.58,170.43,170.39,5.8664]
[1747413655097,61.58,170.43,170.36,62.2]
[1747413656104,67.4451,170.43,170.36,62.2]
[1747413656802,67.4451,170.43,170.4,5.866]
[1747413657004,61.58,170.43,170.36,62.2]
[1747413657202,61.46,170.42,170.36,62.2]
[1747413657406,61.46,170.42,170.41,5.8656]
[1747413657904,61.56,170.46,170.41,5.8656]
[1747413658206,61.42,170.45,170.41,5.8656]
[1747413658404,5.8651,170.43,170.39,5.8662]
[1747413658605,5.8651,170.43,170.36,62.2]
[1747413658801,5.8651,170.43,170.4,5.8659]
[1747413659007,5.8651,170.43,170.36,62.2]
[1747413659908,61.42,170.45,170.36,62.2]
[1747413660204,61.42,170.45,170.42,5.8652]
[1747413660400,61.36,170.44,170.38,61.56]
[1747413660709,61.36,170.44,170.43,5.8649]
[1747413660907,61.36,170.44,170.38,61.56]
[1747413661103,61.36,170.44,170.42,5.8652]
[1747413661406,61.36,170.44,170.38,61.56]
[1747413661607,61.34,170.43,170.38,61.56]
[1747413661807,61.34,170.44,170.38,61.56]
[1747413662306,61.34,170.44,170.43,5.8651]
[1747413662503,5.8644,170.45,170.38,61.56]
[1747413662711,61.32,170.44,170.39,5.8662]
[1747413663002,61.32,170.44,170.38,61.56]
[1747413663202,61.32,170.44,170.41,5.8657]
[1747413663203,67.1849,170.44,170.41,5.8657]
[1747413663709,61.32,170.44,170.38,61.56]
[1747413663906,61.32,170.44,170.42,5.8653]
[1747413664106,61.32,170.44,170.38,61.56]
[1747413664609,61.32,170.44,170.43,5.8651]
[1747413664911,61.32,170.44,170.38,61.56]
[1747413665513,61.32,170.44,170.43,5.8651]
[1747413666405,61.32,170.44,170.39,61.56]
[1747413667115,312.16899557,170.48,170.36,75.39691266]
[1747413667414,122.88,170.47,170.36,61.56]
[1747413667608,131.52787824,170.47,170.34,1.9131]
[1747413667809,131.52787824,170.47,170.39,5.8663]
[1747413668412,131.52787824,170.47,170.34,1.9131]
[1747413668616,8.64787824,170.44,170.33,1.8474]
[1747413668807,5.867,170.38,170.35,5.8676]
[1747413669007,122.84,170.37,170.35,5.8676]
[1747413669305,122.84,170.37,170.33,1.8474]
[1747413669613,122.84,170.37,170.36,5.8675]
[1747413671110,122.84,170.37,170.35,5.8678]